bitfinex/quotes_SOLUSD_20230111
["timestamp","ask_amount","ask_price","bid_price","bid_amount"]
[1673434716417,46.8,16.031,16.017,46.84]
[1673434716658,37.0,16.03,16.017,46.84]
[1673434722410,20.0,16.03,16.018,37.0]
[1673434722621,46.8,16.032,16.018,37.0]
[1673434722622,20.0,16.031,16.019,46.83]
[1673434722833,66.8,16.032,16.02,17.0]
[1673434723999,46.79,16.034,16.02,17.0]
[1673434724211,46.79,16.035,16.021,86.83]
[1673434724423,46.79,16.035,16.022,17.0]
[1673434725897,20.0,16.034,16.022,17.0]
[1673434726190,17.0,16.033,16.021,66.83]
[1673434726400,20.0,16.033,16.021,20.0]
[1673434726611,66.79,16.033,16.021,20.0]
[1673434726842,46.79,16.034,16.021,66.83]
[1673434727241,46.79,16.035,16.021,66.83]
[1673434727681,20.0,16.034,16.021,66.83]
[1673434727872,20.0,16.034,16.021,20.0]
[1673434727873,17.0,16.033,16.021,20.0]
[1673434728307,63.79,16.033,16.021,20.0]
[1673434730203,63.79,16.033,16.013,20.0]
[1673434730204,26.56,16.03,16.013,46.85]
[1673434730416,83.8,16.029,16.012,46.85]
[1673434730611,159.48750992,16.029,16.012,46.85]
[1673434730940,20.0,16.027,16.012,46.85]
[1673434731172,63.81,16.026,16.012,46.85]
[1673434731883,63.81,16.026,16.012,66.85]
[1673434734082,63.81,16.026,16.013,20.0]
[1673434735237,63.81,16.026,16.012,66.85]
[1673434735870,46.81,16.026,16.014,20.0]
[1673434736079,46.81,16.026,16.015,17.0]
[1673434736505,46.81,16.027,16.015,17.0]
[1673434738830,17.0,16.026,16.012,46.85]
[1673434739349,46.82,16.025,16.012,46.85]
[1673434739994,46.82,16.025,16.012,66.85]
[1673434740177,46.82,16.025,16.012,46.85]
[1673434743465,46.82,16.025,16.012,66.85]
[1673434743774,46.82,16.025,16.013,20.0]
[1673434744615,46.82,16.025,16.012,66.85]
[1673434744926,17.0,16.024,16.012,46.85]
[1673434745660,37.0,16.025,16.012,46.85]
[1673434745872,37.0,16.025,16.011,111.8572]
[1673434746070,37.0,16.025,16.012,86.85]
[1673434747540,17.0,16.025,16.012,86.85]
[1673434748062,17.0,16.026,16.012,86.85]
[1673434755339,65.56512149,16.027,16.012,86.85]
[1673434755340,46.81,16.027,16.013,17.0]
[1673434755665,46.8,16.029,16.015,20.0]
[1673434756699,17.0,16.028,16.015,20.0]
[1673434759756,46.81,16.027,16.015,20.0]
[1673434759956,63.81,16.028,16.015,20.0]
[1673434761012,63.81,16.028,16.014,46.85]
[1673434761233,63.81,16.028,16.015,17.0]
[1673434761965,46.81,16.028,16.015,17.0]
[1673434762182,46.81,16.028,16.016,20.0]
[1673434762505,46.81,16.028,16.017,17.0]
[1673434763852,160.6343,16.029,16.017,17.0]
[1673434764400,113.8343,16.029,16.017,17.0]
[1673434764925,113.8343,16.029,16.018,46.84]
[1673434765239,113.8343,16.029,16.017,63.84]
[1673434767431,113.8343,16.029,16.017,17.0]
[1673434768696,46.8,16.031,16.017,17.0]
[1673434768905,46.79,16.035,16.019,20.0]
[1673434769111,46.78,16.036,16.02,83.83]
[1673434769431,46.78,16.036,16.021,20.0]
[1673434769651,46.78,16.036,16.022,83.83]
[1673434770189,17.0,16.035,16.022,83.83]
[1673434770369,17.0,16.035,16.023,20.0]
[1673434771018,17.0,16.036,16.023,20.0]
[1673434772284,66.78,16.037,16.024,17.0]
[1673434772687,66.78,16.037,16.024,63.82]
[1673434773338,46.78,16.037,16.024,63.82]
[1673434773650,162.7062,16.038,16.024,63.82]
[1673434774177,20.0,16.037,16.024,63.82]
[1673434776492,20.0,16.037,16.024,17.0]
[1673434777317,17.0,16.036,16.023,46.82]
[1673434785294,17.0,16.036,16.02,111.6935]
[1673434785295,46.79,16.035,16.02,111.6935]
[1673434785507,26.56,16.03,16.02,111.6935]
[1673434785718,17.0,16.029,16.02,111.6935]
[1673434786137,20.0,16.028,16.02,111.6935]
[1673434787211,37.0,16.029,16.02,111.6935]
[1673434787212,17.0,16.029,16.02,111.6935]
[1673434794049,26.56,16.03,16.02,111.6935]
[1673434794265,20.0,16.031,16.02,111.6935]
[1673434794568,37.0,16.03,16.02,111.6935]
[1673434797836,37.0,16.03,16.021,20.0]
[1673434798141,20.0,16.03,16.02,111.6935]
[1673434798358,20.0,16.031,16.02,111.6935]
[1673434800140,20.0,16.03,16.02,111.6935]
[1673434800752,20.0,16.029,16.017,46.84]
[1673434800967,37.0,16.029,16.014,46.85]
[1673434801498,83.8,16.029,16.014,46.85]
[1673434802348,83.8,16.029,16.014,66.85]
[1673434802556,83.8,16.029,16.009,46.86]
[1673434802748,128.80316113,16.029,16.009,46.86]
[1673434802965,147.55828262,16.029,16.012,20.0]
[1673434803171,20.0,16.027,16.012,66.85]
[1673434803385,63.81,16.026,16.012,66.85]
[1673434803807,63.81,16.026,16.012,20.0]
[1673434804021,69.26958176,16.025,16.007,46.87]
[1673434804241,20.0,16.023,16.007,46.87]
[1673434804437,37.0,16.022,16.007,46.87]
[1673434804646,20.0,16.021,16.007,46.87]
[1673434804876,37.0,16.02,16.007,46.87]
[1673434805603,154.12303381,16.025,16.008,33.75310954]
[1673434805924,109.5082,16.025,16.009,63.86]
[1673434806138,109.5082,16.025,16.01,40.0]
[1673434806338,109.5082,16.025,16.011,46.86]
[1673434806532,109.5082,16.025,16.012,20.0]
[1673434807062,17.0,16.024,16.012,20.0]
[1673434807271,17.0,16.024,16.011,116.9763]
[1673434807272,66.82,16.023,16.011,116.9763]
[1673434807483,37.0,16.022,16.007,46.87]
[1673434808117,26.56,16.02,16.007,46.87]
[1673434808336,17.0,16.019,16.007,46.87]
[1673434809064,46.84,16.018,16.003,46.88]
[1673434809262,37.0,16.017,16.003,46.88]
[1673434810104,37.0,16.017,16.003,66.88]
[1673434810549,37.0,16.017,16.003,46.88]
[1673434811799,46.84,16.016,16.002,116.95110444]
[1673434812007,17.0,16.015,16.002,116.95110444]
[1673434812213,20.0,16.014,16.002,116.95110444]
[1673434812426,17.0,16.013,16.002,116.95110444]
[1673434812630,17.0,16.013,16.003,46.88]
[1673434815290,17.0,16.013,16.002,116.95110444]
[1673434815604,17.0,16.013,16.003,46.88]
[1673434816748,17.0,16.013,16.002,116.95110444]
[1673434816964,17.0,16.013,16.003,46.88]
[1673434817479,17.0,16.014,16.002,116.95110444]
[1673434818843,17.0,16.014,16.003,46.88]
[1673434819268,26.56,16.01,16.002,5.56310444]
[1673434819583,37.0,16.009,16.002,5.56310444]
[1673434819786,17.0,16.009,16.002,5.56310444]
[1673434820203,26.56,16.01,16.002,5.56310444]
[1673434820415,20.0,16.015,16.002,5.56310444]
[1673434820623,37.0,16.014,16.002,5.56310444]
[1673434820944,26.56,16.01,16.002,5.56310444]
[1673434821158,17.0,16.009,16.002,5.56310444]
[1673434822951,26.56,16.01,16.002,5.56310444]
[1673434823263,17.0,16.009,16.002,5.56310444]
[1673434828732,20.0,16.008,16.002,5.56310444]
[1673434828941,17.0,16.007,16.002,5.56310444]
[1673434832940,26.56,16.01,16.002,5.56310444]
[1673434833571,20.0,16.009,16.002,5.56310444]
[1673434834312,26.56,16.01,16.002,5.56310444]
[1673434838201,20.0,16.009,16.002,5.56310444]
[1673434839247,46.56,16.01,16.002,5.56310444]
[1673434840197,26.56,16.01,16.002,5.56310444]
[1673434840719,20.0,16.009,16.002,5.56310444]
[1673434840941,17.0,16.008,16.002,5.56310444]
[1673434842723,26.56,16.01,16.002,5.56310444]
[1673434843033,20.0,16.009,16.002,5.56310444]
[1673434843248,66.86,16.009,16.002,5.56310444]
[1673434843439,20.0,16.009,16.002,5.56310444]
[1673434845439,93.42,16.01,16.002,5.56310444]
[1673434845665,17.0,16.009,16.002,5.56310444]
[1673434847764,26.56,16.01,16.002,5.56310444]
[1673434851777,46.84,16.018,16.003,37.0]
[1673434851957,20.0,16.017,16.005,20.0]
[1673434852167,20.0,16.017,16.004,46.88]
[1673434852380,46.84,16.016,16.003,83.88]
[1673434854179,46.34,16.016,16.003,83.88]
[1673434854486,46.34,16.016,16.004,20.0]
[1673434856067,20.0,16.017,16.004,20.0]
[1673434856399,63.84,16.016,16.004,20.0]
[1673434858591,46.84,16.016,16.004,20.0]
[1673434858790,46.84,16.018,16.005,17.0]
[1673434859752,20.0,16.017,16.005,17.0]
[1673434859958,46.84,16.018,16.005,17.0]
[1673434860692,20.0,16.017,16.002,125.52070444]
[1673434860900,20.0,16.015,16.002,125.52070444]
[1673434861224,46.85,16.014,16.002,125.52070444]
[1673434862590,20.0,16.013,16.002,125.52070444]
[1673434862795,17.0,16.012,16.002,125.52070444]
[1673434864384,17.0,16.013,16.002,125.52070444]
[1673434864691,63.85,16.014,16.002,125.52070444]
[1673434866459,17.0,16.014,16.004,20.0]
[1673434866667,46.84,16.016,16.004,20.0]
[1673434866878,88.54163915,16.024,16.004,20.0]
[1673434866879,46.84,16.018,16.004,20.0]
[1673434869316,46.84,16.018,16.005,17.0]
[1673434872569,46.84,16.018,16.006,20.0]
[1673434873411,46.83,16.019,16.006,20.0]
[1673434876376,46.83,16.019,16.007,17.0]
[1673434878275,46.83,16.019,16.004,66.88]
[1673434878585,37.0,16.018,16.004,66.88]
[1673434879113,37.0,16.018,16.004,46.88]
[1673434879423,37.0,16.018,16.003,46.88]
[1673434879635,20.0,16.016,16.003,46.88]
[1673434879952,46.85,16.015,16.003,46.88]
[1673434880350,46.84,16.017,16.004,37.0]
[1673434883108,46.84,16.018,16.004,37.0]
[1673434883937,20.0,16.017,16.004,17.0]
[1673434884135,46.84,16.016,16.002,172.40070444]
[1673434884345,17.0,16.015,16.002,125.52070444]
[1673434884556,46.85,16.014,16.002,125.52070444]
[1673434884875,20.0,16.012,16.002,125.52070444]
[1673434885093,83.86,16.011,16.002,125.52070444]
[1673434885292,37.0,16.011,16.002,125.52070444]
[1673434888036,26.56,16.01,16.002,125.52070444]
[1673434891000,26.56,16.01,16.002,5.56310444]
[1673434891212,17.0,16.009,16.002,5.56310444]
[1673434894674,26.56,16.01,16.002,5.56310444]
[1673434902341,137.131,16.02,16.003,46.88]
[1673434902545,137.131,16.02,16.003,63.88]
[1673434903177,137.131,16.02,16.004,20.0]
[1673434903500,137.131,16.02,16.005,46.88]
[1673434903701,137.131,16.02,16.006,20.0]
[1673434904024,137.131,16.02,16.005,46.88]
[1673434904240,66.83,16.019,16.002,169.14570444]
[1673434904456,66.83,16.019,16.002,122.26570444]
[1673434904975,20.0,16.017,16.002,122.26570444]
[1673434905184,66.84,16.016,16.002,122.26570444]
[1673434905376,17.0,16.015,16.002,122.26570444]
[1673434905585,66.85,16.014,16.002,122.26570444]
[1673434905801,17.0,16.013,16.002,122.26570444]
[1673434906011,20.0,16.012,16.002,122.26570444]
[1673434906228,17.0,16.011,16.002,122.26570444]
[1673434906437,20.0,16.01,16.002,122.26570444]
[1673434912746,17.0,16.009,16.002,122.26570444]
[1673434914654,17.0,16.009,16.003,20.0]
[1673434915492,17.0,16.009,16.002,122.26570444]
[1673434920737,17.0,16.009,16.002,5.56310444]
[1673434928303,46.56,16.01,16.002,5.56310444]
[1673434929668,17.0,16.009,16.002,5.56310444]
[1673434952292,17.0,16.009,16.002,5.06310444]
[1673434963237,20.0,16.008,16.002,5.06310444]
[1673434963424,17.0,16.007,16.002,5.06310444]
[1673434965012,17.0,16.008,16.002,5.06310444]
[1673434965216,17.0,16.009,16.002,5.06310444]
[1673434967976,20.0,16.01,16.002,5.06310444]
[1673434968195,19.5,16.011,16.002,5.06310444]
[1673434968502,46.85,16.014,16.002,5.06310444]
[1673434970278,20.0,16.013,16.002,5.06310444]
[1673434973129,20.0,16.012,16.002,5.06310444]
[1673434973319,20.0,16.011,16.002,5.06310444]
[1673434975225,20.0,16.012,16.002,5.06310444]
[1673434978689,20.0,16.013,16.002,5.06310444]
[1673434978901,17.0,16.012,16.002,5.06310444]
[1673434979100,20.0,16.011,16.002,5.06310444]
[1673434980402,17.0,16.01,16.002,5.06310444]
[1673434983226,20.0,16.008,16.002,5.06310444]
[1673434983434,63.87,16.007,16.002,5.06310444]
[1673434983872,17.0,16.007,16.002,5.06310444]
[1673434986185,17.0,16.008,16.002,5.06310444]
[1673434999738,17.0,16.008,16.002,4.98339643]
[1673435005404,132.86,16.01,16.002,4.98339643]
[1673435005944,179.72,16.01,16.002,4.98339643]
[1673435006561,20.0,16.009,16.002,4.98339643]
[1673435006893,17.0,16.008,16.002,4.98339643]
[1673435012031,37.0,16.009,16.002,4.98339643]
[1673435017074,20.0,16.007,16.002,4.98339643]
[1673435017405,20.0,16.005,16.0,173.527528]
[1673435017597,20.0,16.003,16.0,173.527528]
[1673435017810,20.0,16.002,16.0,173.527528]
[1673435018140,37.0,16.002,16.0,124.558528]
[1673435018455,20.0,16.001,16.0,38.704328]
[1673435018772,20.0,16.0,15.986,46.93]
[1673435018961,46.89,15.999,15.986,46.93]
[1673435019174,37.0,15.998,15.986,46.93]
[1673435019803,37.0,15.998,15.985,46.93]
[1673435022223,37.0,15.998,15.985,66.93]
[1673435022763,37.0,15.998,15.986,20.0]
[1673435023371,37.0,15.998,15.985,46.93]
[1673435023598,37.0,15.998,15.985,20.0]
[1673435023815,37.0,15.998,15.985,66.93]
[1673435025407,17.0,15.998,15.985,66.93]
[1673435026142,17.0,15.998,15.985,46.93]
[1673435026454,20.0,15.997,15.983,46.94]
[1673435026664,17.0,15.996,15.985,46.93]
[1673435027617,17.0,15.996,15.985,66.93]
[1673435029399,17.0,15.996,15.986,20.0]
[1673435029713,17.0,15.997,15.986,20.0]
[1673435030128,17.0,15.998,15.986,20.0]
[1673435031070,20.0,15.997,15.985,46.93]
[1673435031281,17.0,15.996,15.985,46.93]
[1673435033501,17.0,15.997,15.985,66.93]
[1673435034221,17.0,15.997,15.985,20.0]
[1673435035071,17.0,15.997,15.985,66.93]
[1673435042417,17.0,15.998,15.985,66.93]
[1673435042628,46.89,15.999,15.985,66.93]
[1673435043051,46.68,16.0,15.985,66.93]
[1673435043914,46.68,16.0,15.985,65.43]
[1673435044231,20.0,15.998,15.985,65.43]
[1673435044855,17.0,15.997,15.985,65.43]
[1673435045067,17.0,15.997,15.985,46.93]
[1673435049377,17.0,15.998,15.986,20.0]
[1673435052434,46.89,15.999,15.986,20.0]
[1673435054542,46.89,15.999,15.985,66.93]
[1673435054734,46.89,15.999,15.986,17.0]
[1673435055480,46.89,15.999,15.986,37.0]
[1673435060445,46.89,15.999,15.987,20.0]
[1673435060658,73.57,16.0,15.987,66.93]
[1673435061796,73.57,16.0,15.987,46.93]
[1673435062004,20.0,15.999,15.987,46.93]
[1673435066311,73.57,16.0,15.987,46.93]
[1673435066523,20.0,15.998,15.987,46.93]
[1673435066745,17.0,15.997,15.983,46.94]
[1673435067062,17.0,15.997,15.985,46.93]
[1673435069166,17.0,15.998,15.986,20.0]
[1673435069358,17.0,15.998,15.985,46.93]
[1673435069588,17.0,15.998,15.983,46.94]
[1673435070020,17.0,15.998,15.985,46.93]
[1673435071396,20.0,15.997,15.985,46.93]
[1673435071592,17.0,15.996,15.985,46.93]
[1673435074860,17.0,15.996,15.986,20.0]
[1673435076841,20.0,15.998,15.986,20.0]
[1673435077051,17.0,15.997,15.986,20.0]
[1673435077469,17.0,15.998,15.986,20.0]
[1673435080431,46.89,15.999,15.986,20.0]
[1673435081908,17.0,15.998,15.986,20.0]
[1673435083906,17.0,15.998,15.985,46.93]
[1673435084103,20.0,15.997,15.985,46.93]
[1673435084434,17.0,15.996,15.985,46.93]
[1673435085358,17.0,15.996,15.983,46.94]
[1673435085567,17.0,15.996,15.985,46.93]
[1673435086321,17.0,15.996,15.985,66.93]
[1673435087270,17.0,15.997,15.985,46.93]
[1673435088226,17.0,15.998,15.986,20.0]
[1673435088526,93.57,16.0,15.986,20.0]
[1673435089893,17.0,15.999,15.986,20.0]
[1673435090835,17.0,15.999,15.985,66.93]
[1673435091025,20.0,15.998,15.985,46.93]
[1673435091238,17.0,15.997,15.985,46.93]
[1673435100820,17.0,15.997,15.982,46.94]
[1673435101250,20.0,15.996,15.982,46.94]
[1673435101461,17.0,15.995,15.982,46.94]
[1673435105671,17.0,15.995,15.982,66.94]
[1673435109256,17.0,15.995,15.982,46.94]
[1673435110390,17.0,15.995,15.985,46.93]
[1673435115115,20.0,15.994,15.985,46.93]
[1673435115332,1.2798144,15.992,15.979,46.95]
[1673435115541,48.1898144,15.992,15.978,46.95]
[1673435115752,48.1898144,15.992,15.979,20.0]
[1673435115753,37.0,15.991,15.979,20.0]
[1673435116168,37.0,15.991,15.978,46.95]
[1673435116378,37.0,15.991,15.978,66.95]
[1673435116596,37.0,15.991,15.978,20.0]
[1673435118687,37.0,15.991,15.977,172.4625662]
[1673435119010,37.0,15.991,15.978,17.0]
[1673435119232,37.0,15.991,15.978,37.0]
[1673435122586,37.0,15.991,15.978,17.0]
[1673435123007,21.05245908,15.99,15.978,17.0]
[1673435123211,20.0,15.99,15.978,17.0]
[1673435123422,1.07459208,15.989,15.977,172.4625662]
[1673435123624,18.07459208,15.989,15.977,172.4625662]
[1673435123843,18.07459208,15.989,15.977,125.5025662]
[1673435124696,18.07459208,15.989,15.978,46.95]
[1673435124903,17.0,15.989,15.977,172.4625662]
[1673435126061,17.0,15.989,15.978,20.0]
[1673435126255,17.0,15.99,15.978,20.0]
[1673435126800,20.0,15.991,15.978,20.0]
[1673435128170,17.0,15.99,15.978,20.0]
[1673435129546,17.0,15.99,15.977,172.4625662]
[1673435131311,17.0,15.99,15.978,20.0]
[1673435131944,17.0,15.99,15.977,172.4625662]
[1673435133840,63.92,15.99,15.977,125.5025662]
[1673435134244,63.92,15.99,15.977,172.4625662]
[1673435138237,43.47,15.99,15.977,172.4625662]
[1673435141083,43.47,15.99,15.978,20.0]
[1673435141499,43.47,15.99,15.979,46.95]
[1673435141704,43.47,15.99,15.978,66.95]
[1673435145521,43.47,15.99,15.978,46.95]
[1673435146978,43.47,15.99,15.979,20.0]
[1673435148556,43.47,15.99,15.978,46.95]
[1673435149738,43.47,15.99,15.978,66.95]
[1673435155193,43.47,15.99,15.978,46.95]
[1673435155698,43.47,15.99,15.977,166.7835]
[1673435159502,43.47,15.99,15.978,20.0]
[1673435161906,43.47,15.99,15.977,166.7835]
[1673435162978,43.47,15.99,15.978,20.0]
[1673435164872,43.47,15.99,15.979,17.0]
[1673435164873,26.47,15.99,15.979,17.0]
[1673435165287,26.47,15.99,15.979,63.95]
[1673435165500,57.798,16.0,15.98,46.55]
[1673435165688,84.478,16.0,15.981,85.87]
[1673435165903,84.478,16.0,15.981,182.69218177]
[1673435166226,84.478,16.0,15.983,20.0]
[1673435166424,84.478,16.0,15.984,63.94]
[1673435166641,84.478,16.0,15.984,122.66527426]
[1673435167088,84.478,16.0,15.985,20.0]
[1673435167287,84.478,16.0,15.986,63.93]
[1673435167923,84.478,16.0,15.987,20.0]
[1673435168127,84.478,16.0,15.988,46.92]
[1673435171366,26.68,16.0,15.99,20.0]
[1673435171701,26.68,16.0,15.99,66.92]
[1673435171888,26.68,16.0,15.99,20.0]
[1673435172100,26.47,16.0,15.991,66.92]
[1673435174216,20.0,16.005,15.991,66.92]
[1673435174411,17.0,16.004,15.992,111.5636]
[1673435177586,26.49,16.0,15.992,111.5636]
[1673435188106,46.88,16.004,15.992,111.5636]
[1673435188309,37.0,16.003,15.992,111.5636]
[1673435191470,20.0,16.002,15.992,111.5636]
[1673435191673,37.0,16.001,15.992,111.5636]
[1673435192080,20.0,16.001,15.992,111.5636]
[1673435192306,20.0,16.002,15.992,111.5636]
[1673435194728,20.0,16.003,15.993,20.0]
[1673435194918,20.0,16.004,15.993,20.0]
[1673435195248,20.0,16.004,15.992,111.5636]
[1673435198639,17.0,16.003,15.992,111.5636]
[1673435199165,20.0,16.002,15.992,111.5636]
[1673435199686,20.0,16.002,15.993,20.0]
[1673435200635,20.0,16.002,15.992,111.5636]
[1673435201156,20.0,16.002,15.993,20.0]
[1673435201899,46.88,16.005,15.993,20.0]
[1673435202101,182.29053512,16.01,15.995,20.0]
[1673435202102,26.53,16.01,15.995,20.0]
[1673435202314,26.53,16.01,15.996,46.9]
[1673435202511,26.53,16.01,15.997,20.0]
[1673435202724,73.39,16.01,15.997,20.0]
[1673435203366,37.0,16.009,15.997,20.0]
[1673435203786,17.0,16.009,15.997,20.0]
[1673435207148,17.0,16.009,15.995,66.9]
[1673435207551,20.0,16.008,15.995,46.9]
[1673435207782,17.0,16.007,15.995,46.9]
[1673435209255,20.0,16.008,15.995,46.9]
[1673435210709,17.0,16.007,15.995,46.9]
[1673435210919,20.0,16.008,15.995,46.9]
[1673435211129,17.0,16.007,15.995,46.9]
[1673435211437,20.0,16.009,15.996,17.0]
[1673435211652,17.0,16.008,15.996,17.0]
[1673435211863,17.0,16.008,15.997,46.9]
[1673435213442,17.0,16.008,15.996,63.9]
[1673435213864,20.0,16.007,15.994,46.91]
[1673435214079,17.0,16.006,15.993,46.91]
[1673435214709,17.0,16.006,15.993,66.91]
[1673435216505,17.0,16.006,15.993,46.91]
[1673435219557,17.0,16.006,15.994,20.0]
[1673435219761,17.0,16.006,15.993,46.91]
[1673435220717,17.0,16.006,15.993,66.91]
[1673435220925,17.0,16.006,15.993,46.91]
[1673435221768,17.0,16.006,15.993,66.91]
[1673435222396,17.0,16.006,15.993,46.91]
[1673435222606,17.0,16.006,15.994,20.0]
[1673435222923,17.0,16.006,15.993,66.91]
[1673435224687,17.0,16.006,15.993,46.91]
[1673435225558,17.0,16.006,15.993,66.91]
[1673435226817,17.0,16.006,15.994,20.0]
[1673435227008,17.0,16.006,15.995,46.9]
[1673435228922,17.0,16.006,15.994,46.91]
[1673435240484,46.88,16.005,15.992,111.5636]
[1673435240681,57.0,16.004,15.992,111.5636]
[1673435241734,103.88,16.004,15.992,111.5636]
[1673435255930,26.68,16.0,15.986,46.93]
[1673435256154,17.0,15.999,15.986,46.93]
[1673435256774,20.0,15.998,15.985,46.93]
[1673435256967,63.9,15.997,15.983,46.94]
[1673435257201,20.0,15.996,15.982,46.94]
[1673435257400,17.0,15.995,15.982,46.94]
[1673435261712,20.0,15.994,15.982,46.94]
[1673435261913,20.0,15.994,15.981,118.381]
[1673435261914,17.0,15.993,15.981,118.381]
[1673435262116,40.0,15.992,15.981,118.381]
[1673435262327,17.0,15.991,15.981,118.381]
[1673435262641,20.0,15.99,15.981,118.381]
[1673435271491,17.0,15.989,15.981,118.381]
[1673435272138,17.0,15.989,15.977,46.96]
[1673435273927,17.0,15.989,15.977,66.96]
[1673435274656,17.0,15.989,15.978,20.0]
[1673435274868,20.0,15.99,15.978,20.0]
[1673435275291,20.0,15.991,15.978,20.0]
[1673435275502,17.0,15.99,15.978,20.0]
[1673435276343,46.31717479,15.999,15.98,26.68]
[1673435276561,139.5714,16.0,15.981,83.95]
[1673435276877,26.53,16.0,15.982,35.57129869]
[1673435277082,26.53,16.0,15.983,46.94]
[1673435277296,26.53,16.0,15.984,110.5188]
[1673435277506,26.53,16.0,15.985,66.93]
[1673435277823,26.53,16.0,15.986,17.0]
[1673435278012,26.53,16.0,15.987,46.93]
[1673435278223,26.53,16.0,15.988,17.0]
[1673435278432,26.53,16.0,15.988,37.0]
[1673435278866,26.53,16.0,15.988,83.92]
[1673435280231,26.53,16.0,15.988,46.92]
[1673435280443,17.0,15.999,15.985,46.93]
[1673435280753,20.0,15.998,15.986,17.0]
[1673435280965,20.0,15.998,15.987,46.93]
[1673435283267,20.0,15.998,15.985,46.93]
[1673435285472,20.0,15.998,15.986,17.0]
[1673435286642,37.0,15.999,15.986,17.0]
[1673435286853,17.0,15.999,15.987,46.93]
[1673435290000,73.56,16.0,15.987,46.93]
[1673435290212,26.67,16.0,15.988,17.0]
[1673435290845,26.67,16.0,15.987,37.0]
[1673435291054,26.67,16.0,15.988,46.92]
[1673435291369,26.67,16.0,15.989,17.0]
[1673435296509,26.67,16.0,15.988,17.0]
[1673435305163,26.67,16.0,15.986,46.93]
[1673435305982,17.0,15.999,15.985,66.93]
[1673435306632,17.0,15.999,15.986,17.0]
[1673435307577,73.56,16.0,15.986,17.0]
[1673435308511,17.0,15.999,15.986,17.0]
[1673435310409,20.0,15.998,15.985,46.93]
[1673435310733,63.9,15.997,15.984,110.5188]
[1673435311465,20.0,15.996,15.984,110.5188]
[1673435311677,17.0,15.995,15.984,110.5188]
[1673435316498,17.0,15.996,15.984,110.5188]
[1673435320081,17.0,15.997,15.984,157.4588]
[1673435324172,17.0,15.997,15.984,110.5188]